[Event "106th British-ch 2019"]
[Site "Torquay"]
[Date "2019.07.27"]
[Round "1.1"]
[White "Howell, David W L"]
[Black "Zapolskis, Antanas"]
[Result "1-0"]
[ECO "D02"]
[WhiteElo "2697"]
[BlackElo "2290"]
[Annotator "ChessBase"]
[PlyCount "77"]
[EventDate "2019.07.27"]
[EventType "swiss"]
[EventCountry "GBR"]
[SourceTitle "playchess.com"]
[Source "ChessBase"]
[SourceQuality "1"]
[TimeControl "40/5400+30:1800+30"]

1. d4 {[%emt 0:00:05]} d5 {[%emt 0:00:00]} 2. Nf3 {[%emt 0:01:49]} c6 {[%emt 0:00:00]} 3. Bf4 {[%emt 0:00:27]} Nf6 {[%emt 0:00:03]} 4. e3 {[%emt 0:00:47]} Bf5 {[%emt 0:02:35]} 5. c4 {[%emt 0:03:51]} e6 {[%emt 0:03:47]} 6. Qb3 {[%emt 0:05:36]} Qb6 {[%emt 0:10:02]} 7. c5 {[%emt 0:10:08]} Qxb3 {[%emt 0:02:16]} 8. axb3 {[%emt 0:00:07]} Bxb1 {[%emt 0:00:26]} 9. Rxb1 {[%emt 0:00:08]} Nbd7 {[%emt 0:00:08]} 10. b4 {[%emt 0:04:41]} a6 {[%emt 0:00:28]} 11. h3 {[%emt 0:02:11]} Ne4 {[%emt 0:05:03]} 12. Bd3 {[%emt 0:02:57]} Be7 {[%emt 0:09:22]} 13. Ke2 {[%emt 0:04:33]} O-O {[%emt 0:08:15]} 14. g4 {[%emt 0:01:13]} f6 {[%emt 0:00:18]} 15. h4 {[%emt 0:07:41]} e5 {[%emt 0:09:59]} 16. Bh2 {[%emt 0:04:54]} f5 {[%emt 0:05:16]} 17. Nxe5 {[%emt 0:11:14]} Nxe5 {[%emt 0:00:18]} 18. Bxe5 {[%emt 0:00:05]} fxg4 {[%emt 0:00:25]} 19. Bxe4 {[%emt 0:00:06]} dxe4 {[%emt 0:00:10]} 20. h5 {[%emt 0:00:05]} a5 {[%emt 0:04:16]} 21. Rbg1 {[%emt 0:12:00]} axb4 {[%emt 0:03:38]} 22. Rxg4 {[%emt 0:00:11]} Bf6 {[%emt 0:00:17]} 23. Bxf6 {[%emt 0:00:38]} Rxf6 {[%emt 0:00:10]} 24. Rxe4 {[%emt 0:00:06]} Ra2 {[%emt 0:00:19]} 25. Rb1 {[%emt 0:00:06]} Rf5 {[%emt 0:04:50]} 26. Re7 {[%emt 0:00:19]} Rf7 {[%emt 0:08:01]} 27. Re8+ {[%emt 0:00:09]} Rf8 {[%emt 0:00:09]} 28. Re7 {[%emt 0:01:34]} Rf7 {[%emt 0:00:08]} 29. Re5 {[%emt 0:00:11]} Kf8 {[%emt 0:01:36]} 30. f4 {[%emt 0:00:05]} Rf6 {[%emt 0:03:03]} 31. Kd3 {[%emt 0:00:11]} g6 {[%emt 0:00:48]} 32. h6 {[%emt 0:03:31]} Rf5 {[%emt 0:03:55]} 33. Rxf5+ {[%emt 0:01:39]} gxf5 {[%emt 0:00:08]} 34. Kc4 {[%emt 0:00:07]} Ra8 {[%emt 0:00:11]} 35. Rg1 {[%emt 0:00:32]} Re8 {[%emt 0:02:50]} 36. Rg5 {[%emt 0:01:15]} Rxe3 {[%emt 0:00:56]} 37. Rxf5+ {[%emt 0:00:07]} Kg8 {[%emt 0:00:10]} 38. Rg5+ {[%emt 0:00:11]} Kh8 {[%emt 0:00:37]} 39. Re5 {[%emt 0:00:06]} 1-0

[Event "106th British-ch 2019"]
[Site "Torquay"]
[Date "2019.07.27"]
[Round "1.4"]
[White "Storey, Charles H"]
[Black "Gordon, Stephen J"]
[Result "1-0"]
[ECO "B95"]
[WhiteElo "2261"]
[BlackElo "2516"]
[Annotator "ChessBase"]
[PlyCount "59"]
[EventDate "2019.07.27"]
[EventType "swiss"]
[EventCountry "GBR"]
[SourceTitle "playchess.com"]
[Source "ChessBase"]
[SourceQuality "1"]
[TimeControl "40/5400+30:1800+30"]

1. e4 {[%emt 0:00:00]} c5 {[%emt 0:00:00]} 2. Nf3 {[%emt 0:00:00]} d6 {[%emt 0:01:49]} 3. d4 {[%emt 0:00:00]} cxd4 {[%emt 0:00:09]} 4. Nxd4 {[%emt 0:00:00]} Nf6 {[%emt 0:00:09]} 5. Nc3 {[%emt 0:00:00]} a6 {[%emt 0:00:43]} 6. Bg5 {[%emt 0:00:02]} e6 {[%emt 0:05:58]} 7. Qf3 {[%emt 0:00:32]} Nbd7 {[%emt 0:04:46]} 8. Qg3 {[%emt 0:08:00]} h6 {[%emt 0:06:16]} 9. Be3 {[%emt 0:01:06]} b5 {[%emt 0:05:32]} 10. Bd3 {[%emt 0:02:31]} Bb7 {[%emt 0:05:35]} 11. f3 {[%emt 0:01:22]} b4 {[%emt 0:20:08]} 12. Nce2 {[%emt 0:00:41]} Nc5 {[%emt 0:03:50]} 13. O-O {[%emt 0:04:40]} h5 {[%emt 0:10:06]} 14. h3 {[%emt 0:06:07]} h4 {[%emt 0:02:49]} 15. Qe1 {[%emt 0:00:12]} e5 {[%emt 0:06:15]} 16. Nb3 {[%emt 0:04:20]} Nxb3 {[%emt 0:01:21]} 17. axb3 {[%emt 0:00:41]} d5 {[%emt 0:00:34]} 18. exd5 {[%emt 0:15:28]} Nxd5 {[%emt 0:00:05]} 19. Bf2 {[%emt 0:00:07]} Be7 {[%emt 0:00:12]} 20. Rd1 {[%emt 0:00:09]} Qc7 {[%emt 0:00:23]} 21. Be4 {[%emt 0:10:09]} Nb6 {[%emt 0:03:13]} 22. Bxb7 {[%emt 0:01:45]} Qxb7 {[%emt 0:00:05]} 23. Nc1 {[%emt 0:00:03]} Nd7 {[%emt 0:01:03]} 24. Nd3 {[%emt 0:00:48]} Rh5 {[%emt 0:03:22]} 25. Qe2 {[%emt 0:00:54]} Rf5 {[%emt 0:02:15]} 26. Rfe1 {[%emt 0:00:27]} g5 {[%emt 0:05:45]} 27. Bd4 {[%emt 0:11:36]} Bd6 {[%emt 0:05:16]} 28. f4 {[%emt 0:02:28]} O-O-O {[%emt 0:04:38]} 29. fxe5 {[%emt 0:00:53]} Qd5 {[%emt 0:01:18]} 30. Qg4 {[%emt 0:06:15]} 1-0

[Event "106th British-ch 2019"]
[Site "Torquay"]
[Date "2019.07.27"]
[Round "1.5"]
[White "Tan, Justin Hy"]
[Black "Wall, Tim P"]
[Result "1-0"]
[ECO "B04"]
[WhiteElo "2513"]
[BlackElo "2246"]
[Annotator "ChessBase"]
[PlyCount "55"]
[EventDate "2019.07.27"]
[EventType "swiss"]
[EventCountry "GBR"]
[SourceTitle "playchess.com"]
[Source "ChessBase"]
[SourceQuality "1"]
[TimeControl "40/5400+30:1800+30"]

1. e4 {[%emt 0:32:36]} Nf6 {[%emt 0:22:14]} 2. e5 {[%emt 0:00:00]} Nd5 {[%emt 0:01:03]} 3. d4 {[%emt 0:00:00]} d6 {[%emt 0:00:13]} 4. Nf3 {[%emt 0:00:00]} dxe5 {[%emt 0:01:11]} 5. Nxe5 {[%emt 0:00:00]} c6 {[%emt 0:00:09]} 6. Be2 {[%emt 0:00:00]} Bf5 {[%emt 0:00:31]} 7. O-O {[%emt 0:00:00]} Nd7 {[%emt 0:00:17]} 8. Nf3 {[%emt 0:00:00]} e6 {[%emt 0:00:13]} 9. c4 {[%emt 0:00:00]} N5f6 {[%emt 0:00:20]} 10. Nc3 {[%emt 0:00:00]} Bd6 {[%emt 0:00:16]} 11. Nh4 {[%emt 0:00:00]} O-O {[%emt 0:00:22]} 12. Nxf5 {[%emt 0:00:00]} exf5 {[%emt 0:00:09]} 13. Qc2 {[%emt 0:00:00]} g6 {[%emt 0:00:57]} 14. h3 {[%emt 0:00:00]} Re8 {[%emt 0:02:14]} 15. Bf3 {[%emt 0:00:00]} Qc7 {[%emt 0:04:29]} 16. g3 {[%emt 0:00:00]} Bb4 {[%emt 0:22:35]} 17. Bf4 {[%emt 0:00:00]} Qa5 {[%emt 0:02:27]} 18. c5 {[%emt 0:02:18]} Bxc3 {[%emt 0:04:03]} 19. bxc3 {[%emt 0:00:03]} Ne4 {[%emt 0:00:51]} 20. c4 {[%emt 0:05:41]} Ndf6 {[%emt 0:06:57]} 21. Rfd1 {[%emt 0:03:33]} Rad8 {[%emt 0:04:03]} 22. Rd3 {[%emt 0:02:54]} g5 {[%emt 0:05:13]} 23. Be3 {[%emt 0:05:27]} Qc7 {[%emt 0:02:38]} 24. Rad1 {[%emt 0:09:37]} h6 {[%emt 0:09:57]} 25. d5 {[%emt 0:05:57]} g4 {[%emt 0:05:10]} 26. hxg4 {[%emt 0:01:53]} fxg4 {[%emt 0:00:14]} 27. Bg2 {[%emt 0:01:55]} Kg7 {[%emt 0:02:27]} 28. Bd4 {[%emt 0:02:25]} 1-0

[Event "106th British-ch 2019"]
[Site "Torquay"]
[Date "2019.07.27"]
[Round "1.6"]
[White "Toma, Katarzyna"]
[Black "Emms, John M"]
[Result "0-1"]
[ECO "B30"]
[WhiteElo "2229"]
[BlackElo "2481"]
[Annotator "ChessBase"]
[PlyCount "80"]
[EventDate "2019.07.27"]
[EventType "swiss"]
[EventCountry "GBR"]
[SourceTitle "playchess.com"]
[Source "ChessBase"]
[SourceQuality "1"]
[TimeControl "40/5400+30:1800+30"]

1. e4 {[%emt 0:00:00]} c5 {[%emt 0:00:05]} 2. Nc3 {[%emt 0:00:00]} Nc6 {[%emt 0:00:16]} 3. Bb5 {[%emt 0:00:37]} Nd4 {[%emt 0:00:26]} 4. Bc4 {[%emt 0:00:45]} Nf6 {[%emt 0:00:55]} 5. Nf3 {[%emt 0:00:52]} d6 {[%emt 0:00:57]} 6. h3 {[%emt 0:01:50]} a6 {[%emt 0:01:34]} 7. a4 {[%emt 0:03:53]} e6 {[%emt 0:00:53]} 8. O-O {[%emt 0:03:19]} Be7 {[%emt 0:00:33]} 9. d3 {[%emt 0:00:49]} Nc6 {[%emt 0:00:55]} 10. d4 {[%emt 0:06:28]} cxd4 {[%emt 0:00:49]} 11. Nxd4 {[%emt 0:00:06]} O-O {[%emt 0:08:37]} 12. Be3 {[%emt 0:03:46]} Qc7 {[%emt 0:06:59]} 13. Qe2 {[%emt 0:09:56]} Bd7 {[%emt 0:05:13]} 14. f4 {[%emt 0:06:51]} Rac8 {[%emt 0:03:53]} 15. Nxc6 {[%emt 0:08:04]} Bxc6 {[%emt 0:02:19]} 16. Bd3 {[%emt 0:00:07]} d5 {[%emt 0:33:11]} 17. exd5 {[%emt 0:21:02]} Nxd5 {[%emt 0:03:39]} 18. Nxd5 {[%emt 0:06:31]} Bxd5 {[%emt 0:00:07]} 19. b3 {[%emt 0:01:32]} Bf6 {[%emt 0:11:32]} 20. Rad1 {[%emt 0:00:06]} Bc3 {[%emt 0:02:01]} 21. Qh5 {[%emt 0:05:25]} f5 {[%emt 0:02:09]} 22. Qe2 {[%emt 0:03:18]} Qc6 {[%emt 0:02:14]} 23. Rf2 {[%emt 0:00:54]} Rfe8 {[%emt 0:01:36]} 24. Bd2 {[%emt 0:03:48]} g6 {[%emt 0:01:11]} 25. Re1 {[%emt 0:08:55]} Kf7 {[%emt 0:01:28]} 26. Qe3 {[%emt 0:00:29]} Qc5 {[%emt 0:01:49]} 27. Bxc3 {[%emt 0:00:49]} Qxe3 {[%emt 0:00:41]} 28. Rxe3 {[%emt 0:00:04]} Rxc3 {[%emt 0:00:03]} 29. Rfe2 {[%emt 0:00:18]} Rd8 {[%emt 0:01:35]} 30. Kf2 {[%emt 0:02:56]} Rd6 {[%emt 0:01:35]} 31. g4 {[%emt 0:00:48]} h6 {[%emt 0:02:24]} 32. gxf5 {[%emt 0:00:12]} gxf5 {[%emt 0:00:07]} 33. Ke1 {[%emt 0:00:35]} Bxb3 {[%emt 0:01:12]} 34. Bxa6 {[%emt 0:01:13]} Rxe3 {[%emt 0:02:04]} 35. Rxe3 {[%emt 0:00:02]} Bxa4 {[%emt 0:00:22]} 36. Bxb7 {[%emt 0:00:17]} Bxc2 {[%emt 0:00:21]} 37. Bf3 {[%emt 0:00:05]} Rd4 {[%emt 0:00:51]} 38. Rc3 {[%emt 0:01:11]} Ba4 {[%emt 0:00:24]} 39. Kf2 {[%emt 0:00:43]} Rxf4 {[%emt 0:00:31]} 40. Kg3 {[%emt 0:00:47]} Rb4 {[%emt 0:00:34]} 0-1

[Event "106th British-ch 2019"]
[Site "Torquay"]
[Date "2019.07.27"]
[Round "1.8"]
[White "Villiers, Thomas"]
[Black "Fernandez, Daniel Howard"]
[Result "1/2-1/2"]
[ECO "A40"]
[WhiteElo "2218"]
[BlackElo "2466"]
[Annotator "ChessBase"]
[PlyCount "118"]
[EventDate "2019.07.27"]
[EventType "swiss"]
[EventCountry "GBR"]
[SourceTitle "playchess.com"]
[Source "ChessBase"]
[SourceQuality "1"]
[TimeControl "40/5400+30:1800+30"]

1. c4 {[%emt 0:00:00]} b6 {[%emt 0:01:53]} 2. d4 {[%emt 0:00:17]} e6 {[%emt 0:00:55]} 3. Nc3 {[%emt 0:03:17]} f5 {[%emt 0:00:22]} 4. e4 {[%emt 0:00:28]} fxe4 {[%emt 0:01:25]} 5. Qh5+ {[%emt 0:03:45]} g6 {[%emt 0:00:02]} 6. Qe5 {[%emt 0:00:14]} Nf6 {[%emt 0:00:16]} 7. Nd5 {[%emt 0:07:15]} Kf7 {[%emt 0:00:03]} 8. Nxf6 {[%emt 0:01:33]} Qxf6 {[%emt 0:06:25]} 9. Qxe4 {[%emt 0:00:26]} Nc6 {[%emt 0:08:12]} 10. Nf3 {[%emt 0:00:59]} Bb7 {[%emt 0:01:59]} 11. Bd2 {[%emt 0:05:17]} Qf5 {[%emt 0:04:30]} 12. Bd3 {[%emt 0:05:45]} Qxe4+ {[%emt 0:00:44]} 13. Bxe4 {[%emt 0:00:11]} Nd8 {[%emt 0:04:29]} 14. Ne5+ {[%emt 0:02:12]} Ke8 {[%emt 0:00:15]} 15. Bxb7 {[%emt 0:02:04]} Nxb7 {[%emt 0:00:09]} 16. h4 {[%emt 0:01:10]} Bg7 {[%emt 0:00:15]} 17. h5 {[%emt 0:01:59]} c5 {[%emt 0:03:03]} 18. hxg6 {[%emt 0:01:51]} hxg6 {[%emt 0:00:37]} 19. Rxh8+ {[%emt 0:05:38]} Bxh8 {[%emt 0:00:20]} 20. Bc3 {[%emt 0:01:12]} d6 {[%emt 0:11:57]} 21. Nf3 {[%emt 0:09:49]} Rc8 {[%emt 0:04:32]} 22. Rc1 {[%emt 0:01:46]} Ke7 {[%emt 0:14:09]} 23. Ke2 {[%emt 0:01:48]} cxd4 {[%emt 0:04:52]} 24. Bxd4 {[%emt 0:01:44]} Na5 {[%emt 0:00:02]} 25. Bxh8 {[%emt 0:02:11]} Rxh8 {[%emt 0:00:04]} 26. b3 {[%emt 0:00:48]} Nc6 {[%emt 0:00:04]} 27. Rd1 {[%emt 0:00:49]} Rh5 {[%emt 0:00:39]} 28. Nd4 {[%emt 0:01:26]} Re5+ {[%emt 0:09:35]} 29. Kf3 {[%emt 0:01:13]} Nxd4+ {[%emt 0:00:09]} 30. Rxd4 {[%emt 0:00:09]} d5 {[%emt 0:01:18]} 31. cxd5 {[%emt 0:09:47]} exd5 {[%emt 0:00:15]} 32. Rd3 {[%emt 0:00:02]} Kd6 {[%emt 0:01:57]} 33. Re3 {[%emt 0:01:02]} Rh5 {[%emt 0:02:11]} 34. Kf4 {[%emt 0:01:55]} Rf5+ {[%emt 0:01:42]} 35. Kg3 {[%emt 0:00:08]} d4 {[%emt 0:01:15]} 36. Re8 {[%emt 0:00:20]} Ra5 {[%emt 0:02:58]} 37. a4 {[%emt 0:05:10]} Kc5 {[%emt 0:00:44]} 38. Rc8+ {[%emt 0:06:06]} Kb4 {[%emt 0:00:02]} 39. Rc4+ {[%emt 0:00:16]} Kxb3 {[%emt 0:00:03]} 40. Rxd4 {[%emt 0:00:07]} Rxa4 {[%emt 0:00:13]} 41. Rd6 {[%emt 0:30:04]} g5 {[%emt 0:31:26]} 42. Rg6 {[%emt 0:00:13]} Rc4 {[%emt 0:00:45]} 43. Rxg5 {[%emt 0:00:06]} a5 {[%emt 0:00:06]} 44. f4 {[%emt 0:00:37]} a4 {[%emt 0:00:45]} 45. Rb5+ {[%emt 0:01:38]} Rb4 {[%emt 0:00:12]} 46. Re5 {[%emt 0:00:45]} a3 {[%emt 0:00:17]} 47. Re1 {[%emt 0:02:51]} a2 {[%emt 0:00:16]} 48. f5 {[%emt 0:00:14]} Ra4 {[%emt 0:00:10]} 49. f6 {[%emt 0:01:28]} a1=Q {[%emt 0:01:24]} 50. Rxa1 {[%emt 0:01:10]} Rxa1 {[%emt 0:00:02]} 51. Kf4 {[%emt 0:00:43]} Kc4 {[%emt 0:00:12]} 52. Ke5 {[%emt 0:00:07]} Kc5 {[%emt 0:01:05]} 53. f7 {[%emt 0:00:19]} Re1+ {[%emt 0:05:18]} 54. Kf6 {[%emt 0:01:23]} Rf1+ {[%emt 0:01:29]} 55. Ke7 {[%emt 0:00:37]} b5 {[%emt 0:00:08]} 56. g4 {[%emt 0:00:42]} b4 {[%emt 0:00:41]} 57. g5 {[%emt 0:00:21]} b3 {[%emt 0:02:57]} 58. g6 {[%emt 0:00:06]} b2 {[%emt 0:00:03]} 59. g7 {[%emt 0:00:11]} Rf6 1/2-1/2

[Event "106th British-ch 2019"]
[Site "Torquay"]
[Date "2019.07.27"]
[Round "1.9"]
[White "Arkell, Keith C"]
[Black "Player, Edmund C"]
[Result "1-0"]
[ECO "A29"]
[WhiteElo "2461"]
[BlackElo "2202"]
[Annotator "ChessBase"]
[PlyCount "53"]
[EventDate "2019.07.27"]
[EventType "swiss"]
[EventCountry "GBR"]
[SourceTitle "playchess.com"]
[Source "ChessBase"]
[SourceQuality "1"]
[TimeControl "40/5400+30:1800+30"]

1. c4 {[%emt 0:00:00]} e5 {[%emt 0:00:00]} 2. Nc3 {[%emt 0:00:00]} Nf6 {[%emt 0:00:00]} 3. g3 {[%emt 0:00:00]} d5 {[%emt 0:00:11]} 4. cxd5 {[%emt 0:00:00]} Nxd5 {[%emt 0:00:06]} 5. Bg2 {[%emt 0:00:01]} Nb6 {[%emt 0:00:18]} 6. Nf3 {[%emt 0:00:43]} Nc6 {[%emt 0:00:12]} 7. O-O {[%emt 0:00:15]} Be6 {[%emt 0:00:27]} 8. a3 {[%emt 0:01:05]} Be7 {[%emt 0:01:39]} 9. b4 {[%emt 0:00:05]} f6 {[%emt 0:02:00]} 10. d3 {[%emt 0:00:43]} O-O {[%emt 0:00:54]} 11. Bb2 {[%emt 0:01:15]} Qd7 {[%emt 0:04:00]} 12. Qc2 {[%emt 0:02:23]} a5 {[%emt 0:25:08]} 13. b5 {[%emt 0:00:25]} Nd4 {[%emt 0:01:17]} 14. Nxd4 {[%emt 0:00:27]} exd4 {[%emt 0:00:15]} 15. Ne4 {[%emt 0:00:31]} Qxb5 {[%emt 0:07:18]} 16. Bxd4 {[%emt 0:00:42]} Bb3 {[%emt 0:33:44]} 17. Rfb1 {[%emt 0:13:13]} Bxc2 {[%emt 0:11:38]} 18. Rxb5 {[%emt 0:00:06]} Ba4 {[%emt 0:02:35]} 19. Rb2 {[%emt 0:04:55]} Nd5 {[%emt 0:01:59]} 20. Nc5 {[%emt 0:02:34]} Bc6 {[%emt 0:00:14]} 21. Nxb7 {[%emt 0:00:54]} Rab8 {[%emt 0:04:52]} 22. Nxa5 {[%emt 0:00:21]} Ba8 {[%emt 0:00:06]} 23. Rc2 {[%emt 0:02:14]} Rb5 {[%emt 0:01:55]} 24. Nc6 {[%emt 0:00:27]} Bxc6 {[%emt 0:00:35]} 25. Rxc6 {[%emt 0:00:08]} Ra8 {[%emt 0:00:21]} 26. Bc5 {[%emt 0:00:59]} Kf8 {[%emt 0:00:34]} 27. Bxd5 {[%emt 0:00:18]} 1-0

[Event "106th British-ch 2019"]
[Site "Torquay"]
[Date "2019.07.27"]
[Round "1.10"]
[White "Stoyanov, Viktor"]
[Black "Haria, Ravi"]
[Result "0-1"]
[ECO "A13"]
[WhiteElo "2198"]
[BlackElo "2430"]
[Annotator "NA"]
[PlyCount "76"]
[EventDate "2019.07.27"]
[EventType "swiss"]
[EventCountry "GBR"]
[SourceTitle "playchess.com"]
[Source "ChessBase"]
[SourceQuality "1"]
[TimeControl "40/5400+30:1800+30"]

1. c4 {[%emt 0:00:00]} e6 {[%emt 0:03:23]} 2. g3 {[%emt 0:00:00]} d5 {[%emt 0:01:17]} 3. Bg2 {[%emt 0:00:00]} Nf6 {[%emt 0:03:25]} 4. Nf3 {[%emt 0:00:08]} d4 {[%emt 0:01:03]} 5. e3 {[%emt 0:00:05]} c5 {[%emt 0:00:33]} 6. O-O {[%emt 0:00:06]} Nc6 {[%emt 0:00:31]} 7. exd4 {[%emt 0:00:11]} cxd4 {[%emt 0:00:29]} 8. d3 {[%emt 0:00:06]} Bd6 {[%emt 0:01:25]} 9. Bg5 {[%emt 0:00:09]} h6 {[%emt 0:00:28]} 10. Bxf6 {[%emt 0:00:06]} Qxf6 {[%emt 0:00:05]} 11. Nbd2 {[%emt 0:00:08]} Qd8 {[%emt 0:06:12]} 12. Ne4 {[%emt 0:01:28]} Be7 {[%emt 0:07:40]} 13. a3 {[%emt 0:01:47]} a5 {[%emt 0:00:07]} 14. Re1 {[%emt 0:04:00]} O-O {[%emt 0:04:19]} 15. Rc1 {[%emt 0:02:55]} Qc7 {[%emt 0:18:05]} 16. c5 {[%emt 0:02:33]} Rd8 {[%emt 0:08:11]} 17. Nfd2 {[%emt 0:19:37]} Ne5 {[%emt 0:17:33]} 18. Qe2 {[%emt 0:02:01]} Nd7 {[%emt 0:00:11]} 19. c6 {[%emt 0:02:00]} bxc6 {[%emt 0:01:31]} 20. Rxc6 {[%emt 0:00:50]} Qb8 {[%emt 0:00:49]} 21. Rec1 {[%emt 0:05:48]} Bb7 {[%emt 0:04:06]} 22. Rc7 {[%emt 0:01:23]} Ra7 {[%emt 0:00:09]} 23. f4 {[%emt 0:05:43]} Bxe4 {[%emt 0:02:50]} 24. Rxd7 {[%emt 0:06:22]} Raxd7 {[%emt 0:00:37]} 25. Nxe4 {[%emt 0:00:23]} Rc7 {[%emt 0:00:20]} 26. Rf1 {[%emt 0:03:15]} Qb5 {[%emt 0:05:01]} 27. Bh3 {[%emt 0:02:36]} g6 {[%emt 0:04:23]} 28. g4 {[%emt 0:01:22]} Rdc8 {[%emt 0:00:55]} 29. f5 {[%emt 0:00:30]} Rc2 {[%emt 0:00:11]} 30. Qf3 {[%emt 0:00:21]} Qe5 {[%emt 0:00:26]} 31. Bg2 {[%emt 0:01:14]} Rc1 {[%emt 0:02:50]} 32. fxg6 {[%emt 0:01:08]} Rxf1+ {[%emt 0:00:05]} 33. Bxf1 {[%emt 0:00:44]} fxg6 {[%emt 0:00:10]} 34. Nd2 {[%emt 0:01:24]} Rc2 {[%emt 0:01:13]} 35. Qa8+ {[%emt 0:01:40]} Bf8 {[%emt 0:01:04]} 36. Qe4 {[%emt 0:02:15]} Qxe4 {[%emt 0:00:18]} 37. Nxe4 {[%emt 0:00:02]} Rxb2 {[%emt 0:00:14]} 38. a4 {[%emt 0:00:17]} Be7 {[%emt 0:01:11]} 0-1

[Event "106th British-ch 2019"]
[Site "Torquay"]
[Date "2019.07.27"]
[Round "1.11"]
[White "Pert, Richard G"]
[Black "Crickmore, Neil Eg"]
[Result "1/2-1/2"]
[ECO "C06"]
[WhiteElo "2430"]
[BlackElo "2187"]
[Annotator "NA"]
[PlyCount "42"]
[EventDate "2019.07.27"]
[EventType "swiss"]
[EventCountry "GBR"]
[SourceTitle "playchess.com"]
[Source "ChessBase"]
[SourceQuality "1"]
[TimeControl "40/5400+30:1800+30"]

1. e4 {[%emt 0:00:00]} e6 {[%emt 0:00:00]} 2. d4 {[%emt 0:00:00]} d5 {[%emt 0:00:00]} 3. Nd2 {[%emt 0:00:00]} Nf6 {[%emt 0:00:38]} 4. e5 {[%emt 0:00:00]} Nfd7 {[%emt 0:00:06]} 5. Ngf3 {[%emt 0:00:18]} c5 {[%emt 0:00:21]} 6. c3 {[%emt 0:00:05]} Nc6 {[%emt 0:00:15]} 7. Bd3 {[%emt 0:00:14]} cxd4 {[%emt 0:00:47]} 8. cxd4 {[%emt 0:00:07]} Qb6 {[%emt 0:00:16]} 9. O-O {[%emt 0:01:53]} a5 {[%emt 0:00:07]} 10. Re1 {[%emt 0:03:33]} Be7 {[%emt 0:02:00]} 11. Nb1 {[%emt 0:02:55]} Nxd4 {[%emt 0:13:35]} 12. Nxd4 {[%emt 0:01:02]} Qxd4 {[%emt 0:00:16]} 13. Nc3 {[%emt 0:00:27]} Qb6 {[%emt 0:03:07]} 14. Qg4 {[%emt 0:01:26]} g6 {[%emt 0:00:16]} 15. Nb5 {[%emt 0:07:17]} Nc5 {[%emt 0:05:40]} 16. Be3 {[%emt 0:03:40]} Bd7 {[%emt 0:01:27]} 17. a4 {[%emt 0:17:28]} Qd8 {[%emt 0:13:58]} 18. Bf1 {[%emt 0:07:14]} O-O {[%emt 0:09:26]} 19. Rac1 {[%emt 0:09:54]} b6 {[%emt 0:08:12]} 20. Bh6 {[%emt 0:05:19]} f5 {[%emt 0:15:28]} 21. Qf4 {[%emt 0:04:04]} Bxb5 {[%emt 0:01:09]} 1/2-1/2

[Event "106th British-ch 2019"]
[Site "Torquay"]
[Date "2019.07.27"]
[Round "1.12"]
[White "Ogunshola, Olugbemiga (Ben)"]
[Black "Houska, Jovanka"]
[Result "1/2-1/2"]
[ECO "A13"]
[WhiteElo "2172"]
[BlackElo "2422"]
[Annotator "NA"]
[PlyCount "56"]
[EventDate "2019.07.27"]
[EventType "swiss"]
[EventCountry "GBR"]
[SourceTitle "playchess.com"]
[Source "ChessBase"]
[SourceQuality "1"]
[TimeControl "40/5400+30:1800+30"]

1. c4 {[%emt 0:01:55]} e6 {[%emt 0:00:02]} 2. Nf3 {[%emt 0:00:47]} d5 {[%emt 0:00:05]} 3. g3 {[%emt 0:02:03]} dxc4 {[%emt 0:00:26]} 4. Qa4+ {[%emt 0:00:31]} Bd7 {[%emt 0:00:18]} 5. Qxc4 {[%emt 0:00:03]} c5 {[%emt 0:00:08]} 6. Bg2 {[%emt 0:00:16]} Bc6 {[%emt 0:00:05]} 7. O-O {[%emt 0:00:35]} Nf6 {[%emt 0:00:38]} 8. Nc3 {[%emt 0:00:45]} Be7 {[%emt 0:02:21]} 9. Rd1 {[%emt 0:06:03]} Nbd7 {[%emt 0:04:19]} 10. d4 {[%emt 0:07:58]} Rc8 {[%emt 0:02:00]} 11. Ne5 {[%emt 0:12:34]} Bxg2 {[%emt 0:03:20]} 12. Kxg2 {[%emt 0:03:00]} O-O {[%emt 0:13:01]} 13. Qa4 {[%emt 0:13:22]} Nxe5 {[%emt 0:16:11]} 14. dxe5 {[%emt 0:00:39]} Nd5 {[%emt 0:00:07]} 15. Qg4 {[%emt 0:08:16]} Qc7 {[%emt 0:01:01]} 16. Nxd5 {[%emt 0:01:03]} exd5 {[%emt 0:00:06]} 17. Rxd5 {[%emt 0:00:17]} Rfd8 {[%emt 0:02:02]} 18. e4 {[%emt 0:01:08]} Qc6 {[%emt 0:03:04]} 19. Qf3 {[%emt 0:09:01]} Qe6 {[%emt 0:00:21]} 20. Bd2 {[%emt 0:08:11]} Rxd5 {[%emt 0:12:23]} 21. exd5 {[%emt 0:00:02]} Qxe5 {[%emt 0:00:07]} 22. Re1 {[%emt 0:06:35]} Qf6 {[%emt 0:00:07]} 23. Qg4 {[%emt 0:01:50]} Rd8 {[%emt 0:01:00]} 24. Bc3 {[%emt 0:02:33]} Qg5 {[%emt 0:00:06]} 25. Qxg5 {[%emt 0:00:26]} Bxg5 {[%emt 0:00:02]} 26. h4 {[%emt 0:00:10]} Bf6 {[%emt 0:00:03]} 27. Bxf6 {[%emt 0:00:14]} gxf6 {[%emt 0:00:04]} 28. Re7 {[%emt 0:00:07]} b5 {[%emt 0:02:56]} 1/2-1/2

[Event "106th British-ch 2019"]
[Site "Torquay"]
[Date "2019.07.27"]
[Round "1.13"]
[White "Ward, Chris G"]
[Black "Ledger, Dave J"]
[Result "1-0"]
[ECO "A25"]
[WhiteElo "2418"]
[BlackElo "2168"]
[Annotator "NA RC"]
[PlyCount "59"]
[EventDate "2019.07.27"]
[EventType "swiss"]
[EventCountry "GBR"]
[SourceTitle "playchess.com"]
[Source "ChessBase"]
[SourceQuality "1"]
[TimeControl "40/5400+30:1800+30"]

1. c4 {[%emt 0:00:00]} e5 {[%emt 0:00:00]} 2. g3 {[%emt 0:00:00]} Nc6 {[%emt 0:04:17]} 3. Bg2 {[%emt 0:01:38]} d6 {[%emt 0:01:01]} 4. Nc3 {[%emt 0:00:34]} Be6 {[%emt 0:01:14]} 5. d3 {[%emt 0:01:26]} Qd7 {[%emt 0:01:32]} 6. Rb1 {[%emt 0:04:08]} f5 {[%emt 0:02:12]} 7. b4 {[%emt 0:04:23]} Nf6 {[%emt 0:02:33]} 8. b5 {[%emt 0:11:23]} Nd8 {[%emt 0:00:13]} 9. Bg5 {[%emt 0:02:47]} Be7 {[%emt 0:01:31]} 10. e3 {[%emt 0:07:51]} O-O {[%emt 0:08:58]} 11. Nge2 {[%emt 0:00:43]} h6 {[%emt 0:08:13]} 12. Bxf6 {[%emt 0:00:43]} Bxf6 {[%emt 0:00:27]} 13. Nd5 {[%emt 0:05:12]} c6 {[%emt 0:05:52]} 14. bxc6 {[%emt 0:19:06]} bxc6 {[%emt 0:00:11]} 15. Nxf6+ {[%emt 0:00:33]} Rxf6 {[%emt 0:00:10]} 16. Qb3 {[%emt 0:06:51]} f4 {[%emt 0:20:19]} 17. gxf4 {[%emt 0:11:01]} Bh3 {[%emt 0:02:27]} 18. Be4 {[%emt 0:03:57]} Rc8 {[%emt 0:05:40]} 19. fxe5 {[%emt 0:03:50]} dxe5 {[%emt 0:00:46]} 20. Rg1 {[%emt 0:00:42]} Qf7 {[%emt 0:06:03]} 21. Qb2 {[%emt 0:01:58]} Qh5 {[%emt 0:07:44]} 22. Nf4 {[%emt 0:02:55]} exf4 {[%emt 0:05:34]} 23. Qxf6 {[%emt 0:00:31]} Qa5+ {[%emt 0:01:07]} 24. Ke2 {[%emt 0:00:35]} Ne6 {[%emt 0:06:04]} 25. Rb7 {[%emt 0:01:07]} f3+ {[%emt 0:01:17]} 26. Bxf3 {[%emt 0:01:05]} Qxa2+ {[%emt 0:01:11]} 27. Qb2 {[%emt 0:00:40]} Nd4+ {[%emt 0:00:36]} 28. exd4 {[%emt 0:00:45]} Re8+ {[%emt 0:00:17]} 29. Be4 {[%emt 0:00:25]} Rxe4+ {[%emt 0:00:05]} 30. dxe4 {[%emt 0:00:09]} 1-0